[Event "*** SCC Grand Prix: Titled Tuesday Blitz"]
[Site "Chess.com"]
[Date "2020.06.23"]
[Round "6"]
[White "Airquake"]
[Black "RaunakSadhwani2005"]
[Result "1/2-1/2"]
[WhiteElo "2670"]
[BlackElo "2877"]
[TimeControl "180+1"]
[EndTime "11:08:18 PDT"]
[Termination "Game drawn by repetition"]

1. e4 {[%clk 0:03:00.9]} 1... c5 {[%clk 0:02:59.8]} 2. Nf3 {[%clk 0:03:00.1]}
2... Nc6 {[%clk 0:02:59.4]} 3. Bb5 {[%clk 0:03:00]} 3... g6 {[%clk 0:02:59.2]}
4. O-O {[%clk 0:02:59.8]} 4... Bg7 {[%clk 0:02:59.2]} 5. Re1 {[%clk 0:03:00.3]}
5... Nf6 {[%clk 0:02:58.7]} 6. c3 {[%clk 0:03:00.5]} 6... O-O {[%clk 0:02:58.2]}
7. d4 {[%clk 0:02:58.6]} 7... cxd4 {[%clk 0:02:56.8]} 8. cxd4 {[%clk 0:02:59.5]}
8... d5 {[%clk 0:02:56.7]} 9. e5 {[%clk 0:03:00]} 9... Ne4 {[%clk 0:02:57.1]}
10. Nc3 {[%clk 0:03:00.4]} 10... Nxc3 {[%clk 0:02:49.4]} 11. bxc3 {[%clk
0:03:00.4]} 11... Qa5 {[%clk 0:02:50]} 12. Qb3 {[%clk 0:02:48.9]} 12... Bg4
{[%clk 0:02:45.2]} 13. Nd2 {[%clk 0:02:06.5]} 13... Bh6 {[%clk 0:02:34.7]} 14.
h3 {[%clk 0:02:02.8]} 14... Bd7 {[%clk 0:02:31.9]} 15. Bf1 {[%clk 0:01:50.1]}
15... Rab8 {[%clk 0:02:15.1]} 16. Nf3 {[%clk 0:01:48.8]} 16... Bxc1 {[%clk
0:02:03.5]} 17. Rexc1 {[%clk 0:01:48.6]} 17... Kg7 {[%clk 0:01:57.2]} 18. c4
{[%clk 0:01:47.3]} 18... Be6 {[%clk 0:01:51.7]} 19. Qe3 {[%clk 0:01:36]} 19...
dxc4 {[%clk 0:01:45.9]} 20. Bxc4 {[%clk 0:01:35.1]} 20... Bxc4 {[%clk
0:01:46.3]} 21. Rxc4 {[%clk 0:01:35.2]} 21... Rbd8 {[%clk 0:01:36.9]} 22. a4
{[%clk 0:01:28.2]} 22... h6 {[%clk 0:01:21.3]} 23. Rb1 {[%clk 0:01:26.1]} 23...
Rd7 {[%clk 0:01:20.7]} 24. e6 {[%clk 0:01:22.2]} 24... fxe6 {[%clk 0:01:21]} 25.
Rb5 {[%clk 0:00:59.9]} 25... Qd8 {[%clk 0:01:11.6]} 26. Qxe6 {[%clk 0:00:47.2]}
26... Rf6 {[%clk 0:01:11.8]} 27. Qe3 {[%clk 0:00:43.2]} 27... a6 {[%clk
0:01:12.2]} 28. Rb1 {[%clk 0:00:37.4]} 28... Qg8 {[%clk 0:00:43.7]} 29. Rc5
{[%clk 0:00:31.2]} 29... Qa2 {[%clk 0:00:43.1]} 30. Re1 {[%clk 0:00:29.4]} 30...
b6 {[%clk 0:00:33.8]} 31. Rcc1 {[%clk 0:00:16.2]} 31... Qd5 {[%clk 0:00:32.8]}
32. Ne5 {[%clk 0:00:14]} 32... Re6 {[%clk 0:00:31.3]} 33. Rxc6 {[%clk
0:00:10.9]} 33... Rxc6 {[%clk 0:00:30.6]} 34. Nxc6 {[%clk 0:00:11.4]} 34... Qxc6
{[%clk 0:00:30.5]} 35. d5 {[%clk 0:00:08.1]} 35... Qf6 {[%clk 0:00:28.1]} 36.
Rd1 {[%clk 0:00:04.8]} 36... h5 {[%clk 0:00:20.7]} 37. Qe4 {[%clk 0:00:04.8]}
37... Rd6 {[%clk 0:00:16.7]} 38. Qc4 {[%clk 0:00:04.4]} 38... a5 {[%clk
0:00:16]} 39. Qc8 {[%clk 0:00:03]} 39... Qe5 {[%clk 0:00:15.9]} 40. Qe8 {[%clk
0:00:02.9]} 40... Kh6 {[%clk 0:00:15.1]} 41. Qf8+ {[%clk 0:00:02.6]} 41... Qg7
{[%clk 0:00:14.6]} 42. Qf4+ {[%clk 0:00:02.6]} 42... g5 {[%clk 0:00:14.8]} 43.
Qe4 {[%clk 0:00:03.1]} 43... e6 {[%clk 0:00:13]} 44. Qc4 {[%clk 0:00:02.1]}
44... Qd7 {[%clk 0:00:12.2]} 45. Re1 {[%clk 0:00:01.6]} 45... Rxd5 {[%clk
0:00:10.1]} 46. Qc3 {[%clk 0:00:02.2]} 46... Kg6 {[%clk 0:00:09.6]} 47. Qc2+
{[%clk 0:00:02]} 47... Kg7 {[%clk 0:00:09.1]} 48. Qb2+ {[%clk 0:00:02.5]} 48...
Kh7 {[%clk 0:00:08.7]} 49. Qxb6 {[%clk 0:00:03.4]} 49... Rd1 {[%clk 0:00:08.3]}
50. Qe3 {[%clk 0:00:03.7]} 50... Rxe1+ {[%clk 0:00:08.3]} 51. Qxe1 {[%clk
0:00:04.6]} 51... Qxa4 {[%clk 0:00:07.9]} 52. Qxe6 {[%clk 0:00:04.6]} 52... Qd1+
{[%clk 0:00:05.2]} 53. Kh2 {[%clk 0:00:04.9]} 53... Qd4 {[%clk 0:00:05.3]} 54.
Qf7+ {[%clk 0:00:05.1]} 54... Kh6 {[%clk 0:00:05.4]} 55. g3 {[%clk 0:00:05.7]}
55... a4 {[%clk 0:00:05.1]} 56. Qe6+ {[%clk 0:00:05.7]} 56... Kg7 {[%clk
0:00:05.5]} 57. Qe7+ {[%clk 0:00:06]} 57... Kg6 {[%clk 0:00:06]} 58. Qe6+ {[%clk
0:00:05.7]} 58... Qf6 {[%clk 0:00:05.7]} 59. Qe4+ {[%clk 0:00:06]} 59... Kh6
{[%clk 0:00:05.9]} 60. Qg2 {[%clk 0:00:04.8]} 60... a3 {[%clk 0:00:05.9]} 61.
Qa8 {[%clk 0:00:02.6]} 61... Qxf2+ {[%clk 0:00:05.8]} 62. Kh1 {[%clk 0:00:03.1]}
62... Qe1+ {[%clk 0:00:06.4]} 63. Kh2 {[%clk 0:00:03.1]} 63... Qd2+ {[%clk
0:00:06.9]} 64. Kh1 {[%clk 0:00:03.3]} 64... Qc1+ {[%clk 0:00:07.4]} 65. Kh2
{[%clk 0:00:03.5]} 65... Qb2+ {[%clk 0:00:08.3]} 66. Kh1 {[%clk 0:00:03.6]}
66... Qb1+ {[%clk 0:00:07.4]} 67. Kh2 {[%clk 0:00:03.6]} 67... Qb2+ {[%clk
0:00:08.3]} 68. Kh1 {[%clk 0:00:03.9]} 68... a2 {[%clk 0:00:08.7]} 69. Qc6+
{[%clk 0:00:04]} 69... Kg7 {[%clk 0:00:07.1]} 70. Qd7+ {[%clk 0:00:04.3]} 70...
Kf6 {[%clk 0:00:06.7]} 71. Qd6+ {[%clk 0:00:03.8]} 71... Kf5 {[%clk 0:00:05.6]}
72. Qd5+ {[%clk 0:00:04.2]} 72... Kg6 {[%clk 0:00:05.8]} 73. Qe6+ {[%clk
0:00:03.1]} 73... Kh7 {[%clk 0:00:05.7]} 74. Qf7+ {[%clk 0:00:03.3]} 74... Kh6
{[%clk 0:00:06.1]} 75. Qe6+ {[%clk 0:00:03.6]} 75... Kg7 {[%clk 0:00:06.4]} 76.
Qe7+ {[%clk 0:00:04.1]} 76... Kg8 {[%clk 0:00:06.2]} 77. Qe8+ {[%clk 0:00:04.3]}
77... Kg7 {[%clk 0:00:06.4]} 78. Qe7+ {[%clk 0:00:04.7]} 78... Kh6 {[%clk
0:00:06.5]} 79. Qe6+ {[%clk 0:00:04.8]} 79... Kh7 {[%clk 0:00:06.9]} 80. Qf7+
{[%clk 0:00:04.7]} 80... Kh8 {[%clk 0:00:05.7]} 81. Qf8+ {[%clk 0:00:04.8]}
81... Kh7 {[%clk 0:00:05.6]} 82. Qf7+ {[%clk 0:00:05.4]} 1/2-1/2

[Event "*** SCC Grand Prix: Titled Tuesday Blitz"]
[Site "Chess.com"]
[Date "2020.06.23"]
[Round "6"]
[White "DenLaz"]
[Black "ShimanovAlex"]
[Result "1/2-1/2"]
[WhiteElo "2712"]
[BlackElo "2866"]
[TimeControl "180+1"]
[EndTime "11:08:24 PDT"]
[Termination "Game drawn - insufficient material"]

1. d4 {[%clk 0:02:59.5]} 1... Nf6 {[%clk 0:02:55]} 2. c4 {[%clk 0:02:57.6]} 2...
g6 {[%clk 0:02:55.3]} 3. g3 {[%clk 0:02:55.3]} 3... Bg7 {[%clk 0:02:55.3]} 4.
Bg2 {[%clk 0:02:54.6]} 4... O-O {[%clk 0:02:54.2]} 5. Nc3 {[%clk 0:02:54.4]}
5... c5 {[%clk 0:02:41]} 6. d5 {[%clk 0:02:52.2]} 6... d6 {[%clk 0:02:40.3]} 7.
Nf3 {[%clk 0:02:51.9]} 7... e6 {[%clk 0:02:40.6]} 8. O-O {[%clk 0:02:50.8]} 8...
exd5 {[%clk 0:02:41]} 9. cxd5 {[%clk 0:02:51.7]} 9... Re8 {[%clk 0:02:41.1]} 10.
Nd2 {[%clk 0:02:46.7]} 10... Nbd7 {[%clk 0:02:40]} 11. a4 {[%clk 0:02:45]} 11...
a6 {[%clk 0:02:37]} 12. h3 {[%clk 0:02:43.6]} 12... Nh5 {[%clk 0:02:33.4]} 13.
Nce4 {[%clk 0:02:38.2]} 13... Ndf6 {[%clk 0:02:29.2]} 14. Nxf6+ {[%clk
0:02:36.8]} 14... Nxf6 {[%clk 0:02:26.6]} 15. Nc4 {[%clk 0:02:35.7]} 15... Rb8
{[%clk 0:02:21.4]} 16. a5 {[%clk 0:02:11.6]} 16... Bf8 {[%clk 0:02:06.6]} 17.
Bf4 {[%clk 0:01:26.7]} 17... Nh5 {[%clk 0:02:04.7]} 18. Bd2 {[%clk 0:01:23]}
18... Bd7 {[%clk 0:02:04.5]} 19. g4 {[%clk 0:01:12]} 19... Nf6 {[%clk
0:02:03.2]} 20. Re1 {[%clk 0:01:11.5]} 20... Bb5 {[%clk 0:02:02.9]} 21. b3
{[%clk 0:01:10.7]} 21... Nd7 {[%clk 0:02:01.1]} 22. Bc3 {[%clk 0:01:08.7]} 22...
Bxc4 {[%clk 0:01:53.8]} 23. bxc4 {[%clk 0:01:09.6]} 23... Bg7 {[%clk 0:01:54.2]}
24. Bxg7 {[%clk 0:01:02.3]} 24... Kxg7 {[%clk 0:01:54.6]} 25. Qd2 {[%clk
0:01:01.6]} 25... Qh4 {[%clk 0:01:43.5]} 26. Qf4 {[%clk 0:00:50.9]} 26... Ne5
{[%clk 0:01:41.6]} 27. Qc1 {[%clk 0:00:26.9]} 27... h5 {[%clk 0:01:38.1]} 28. f4
{[%clk 0:00:25.1]} 28... hxg4 {[%clk 0:01:26.3]} 29. fxe5 {[%clk 0:00:23.6]}
29... gxh3 {[%clk 0:01:26.5]} 30. Bf3 {[%clk 0:00:22.3]} 30... Rxe5 {[%clk
0:01:26.2]} 31. Qc3 {[%clk 0:00:20.5]} 31... Qf6 {[%clk 0:01:24.1]} 32. Kh1
{[%clk 0:00:19.2]} 32... Rbe8 {[%clk 0:01:21.2]} 33. Rf1 {[%clk 0:00:17.3]}
33... Qh4 {[%clk 0:01:16]} 34. Rab1 {[%clk 0:00:16.3]} 34... Re7 {[%clk
0:00:40.6]} 35. Rb6 {[%clk 0:00:16.1]} 35... Qf6 {[%clk 0:00:36.3]} 36. Qb2
{[%clk 0:00:13]} 36... g5 {[%clk 0:00:34]} 37. Qb1 {[%clk 0:00:11.4]} 37... Rf5
{[%clk 0:00:29.7]} 38. Rxd6 {[%clk 0:00:10.8]} 38... Qe5 {[%clk 0:00:24.2]} 39.
Qa1 {[%clk 0:00:11.1]} 39... g4 {[%clk 0:00:21.6]} 40. Qxe5+ {[%clk 0:00:10.3]}
40... Rexe5 {[%clk 0:00:21.7]} 41. Rb6 {[%clk 0:00:10.3]} 41... gxf3 {[%clk
0:00:21.5]} 42. Rxf3 {[%clk 0:00:11.2]} 42... Rg5 {[%clk 0:00:20.6]} 43. Kh2
{[%clk 0:00:09.4]} 43... Rxe2+ {[%clk 0:00:20.5]} 44. Kxh3 {[%clk 0:00:09.8]}
44... Re8 {[%clk 0:00:20.2]} 45. Rg3 {[%clk 0:00:09.6]} 45... Rxg3+ {[%clk
0:00:17.9]} 46. Kxg3 {[%clk 0:00:10.5]} 46... Re4 {[%clk 0:00:18.1]} 47. Rxb7
{[%clk 0:00:10.7]} 47... Rxc4 {[%clk 0:00:18.4]} 48. Rb6 {[%clk 0:00:10.9]}
48... Rd4 {[%clk 0:00:18.3]} 49. Rxa6 {[%clk 0:00:11.4]} 49... Rxd5 {[%clk
0:00:18.5]} 50. Rc6 {[%clk 0:00:11.9]} 50... c4 {[%clk 0:00:14.9]} 51. Rxc4
{[%clk 0:00:10.7]} 51... Rxa5 {[%clk 0:00:15]} 52. Kf4 {[%clk 0:00:11.2]} 52...
Kg6 {[%clk 0:00:14.3]} 53. Rc6+ {[%clk 0:00:10.9]} 53... f6 {[%clk 0:00:14.3]}
54. Rc8 {[%clk 0:00:11.3]} 54... Ra4+ {[%clk 0:00:14.6]} 55. Kf3 {[%clk
0:00:11.5]} 55... Kg5 {[%clk 0:00:14.9]} 56. Rg8+ {[%clk 0:00:10.6]} 56... Kf5
{[%clk 0:00:15]} 57. Rb8 {[%clk 0:00:10.6]} 57... Ra3+ {[%clk 0:00:14.1]} 58.
Kf2 {[%clk 0:00:10.9]} 58... Kg5 {[%clk 0:00:14.3]} 59. Rb4 {[%clk 0:00:09.4]}
59... Rc3 {[%clk 0:00:13.4]} 60. Kg2 {[%clk 0:00:09.6]} 60... Kf5 {[%clk
0:00:13.5]} 61. Kf2 {[%clk 0:00:10]} 61... Rd3 {[%clk 0:00:14]} 62. Kg2 {[%clk
0:00:10.1]} 62... Re3 {[%clk 0:00:14.4]} 63. Kf2 {[%clk 0:00:10.1]} 63... Re4
{[%clk 0:00:14.9]} 64. Rb6 {[%clk 0:00:10.4]} 64... Kg5 {[%clk 0:00:14.6]} 65.
Kf3 {[%clk 0:00:10.1]} 65... Rf4+ {[%clk 0:00:14.8]} 66. Kg3 {[%clk 0:00:10.2]}
66... Ra4 {[%clk 0:00:15]} 67. Rb5+ {[%clk 0:00:08]} 67... f5 {[%clk 0:00:14.7]}
68. Rb3 {[%clk 0:00:08.6]} 68... Rg4+ {[%clk 0:00:13.8]} 69. Kf3 {[%clk
0:00:08.6]} 69... Rh4 {[%clk 0:00:13.9]} 70. Rb8 {[%clk 0:00:07.3]} 70... Rh3+
{[%clk 0:00:13.8]} 71. Kg2 {[%clk 0:00:07.8]} 71... Re3 {[%clk 0:00:13.6]} 72.
Rb4 {[%clk 0:00:08]} 72... Re4 {[%clk 0:00:13.5]} 73. Rxe4 {[%clk 0:00:07.3]}
73... fxe4 {[%clk 0:00:13.8]} 74. Kf2 {[%clk 0:00:08]} 74... Kf4 {[%clk
0:00:14.1]} 75. Ke2 {[%clk 0:00:08.4]} 75... Kf5 {[%clk 0:00:14.5]} 76. Ke3
{[%clk 0:00:08.3]} 76... Ke5 {[%clk 0:00:15]} 77. Ke2 {[%clk 0:00:08.9]} 77...
Kd4 {[%clk 0:00:15.6]} 78. Kd2 {[%clk 0:00:09.2]} 78... e3+ {[%clk 0:00:16.2]}
79. Ke2 {[%clk 0:00:09.6]} 79... Ke4 {[%clk 0:00:16.7]} 80. Ke1 {[%clk
0:00:09.8]} 80... Kd3 {[%clk 0:00:17.1]} 81. Kd1 {[%clk 0:00:10]} 81... e2+
{[%clk 0:00:17.5]} 82. Ke1 {[%clk 0:00:10.5]} 82... Kc2 {[%clk 0:00:17.2]} 83.
Kxe2 {[%clk 0:00:10.1]} 1/2-1/2

[Event "*** SCC Grand Prix: Titled Tuesday Blitz"]
[Site "Chess.com"]
[Date "2020.06.23"]
[Round "6"]
[White "Maksimus1998"]
[Black "olksuna"]
[Result "0-1"]
[WhiteElo "2470"]
[BlackElo "2601"]
[TimeControl "180+1"]
[EndTime "11:08:24 PDT"]
[Termination "olksuna won by resignation"]

1. e4 {[%clk 0:03:00.9]} 1... d6 {[%clk 0:03:00.2]} 2. d4 {[%clk 0:03:00.4]}
2... Nf6 {[%clk 0:03:00.9]} 3. Nc3 {[%clk 0:03:00.7]} 3... c6 {[%clk 0:03:01.3]}
4. g3 {[%clk 0:02:52.1]} 4... e5 {[%clk 0:02:58.3]} 5. Nge2 {[%clk 0:02:49]}
5... h5 {[%clk 0:02:53.1]} 6. h3 {[%clk 0:02:47.7]} 6... h4 {[%clk 0:02:50.8]}
7. g4 {[%clk 0:02:47.8]} 7... exd4 {[%clk 0:02:51.5]} 8. Nxd4 {[%clk 0:02:47.5]}
8... d5 {[%clk 0:02:52]} 9. Bg2 {[%clk 0:02:36.9]} 9... Bb4 {[%clk 0:02:45.5]}
10. e5 {[%clk 0:02:32.9]} 10... Ne4 {[%clk 0:02:44]} 11. Bd2 {[%clk 0:02:22.1]}
11... Nxd2 {[%clk 0:02:39.8]} 12. Qxd2 {[%clk 0:02:23]} 12... c5 {[%clk
0:02:40.2]} 13. Nf5 {[%clk 0:02:18.2]} 13... Bxf5 {[%clk 0:02:35.4]} 14. gxf5
{[%clk 0:02:17.6]} 14... d4 {[%clk 0:02:35.9]} 15. a3 {[%clk 0:02:15.9]} 15...
Bxc3 {[%clk 0:02:18.5]} 16. bxc3 {[%clk 0:02:15.7]} 16... Nc6 {[%clk 0:02:19.4]}
17. O-O {[%clk 0:02:13.7]} 17... O-O {[%clk 0:02:15.8]} 18. f4 {[%clk 0:02:12]}
18... dxc3 {[%clk 0:02:10.5]} 19. Qxc3 {[%clk 0:02:11.5]} 19... Qd4+ {[%clk
0:02:02.7]} 20. Qxd4 {[%clk 0:02:11.4]} 20... Nxd4 {[%clk 0:02:03.6]} 21. Bxb7
{[%clk 0:02:11.3]} 21... Rab8 {[%clk 0:02:00.9]} 22. Be4 {[%clk 0:02:11.4]}
22... Rb2 {[%clk 0:01:56.5]} 23. Rfb1 {[%clk 0:01:48]} 23... Rfb8 {[%clk
0:01:47.2]} 24. Rxb2 {[%clk 0:01:46.8]} 24... Rxb2 {[%clk 0:01:48.1]} 25. Kf2
{[%clk 0:01:41.9]} 25... Nxc2 {[%clk 0:01:36.8]} 26. Bxc2 {[%clk 0:01:41.7]}
26... Rxc2+ {[%clk 0:01:37.7]} 27. Kf3 {[%clk 0:01:42.3]} 27... Rc4 {[%clk
0:01:10.4]} 28. Kg4 {[%clk 0:01:31.5]} 28... Ra4 {[%clk 0:01:01.3]} 29. Rc1
{[%clk 0:01:24.5]} 29... c4 {[%clk 0:00:52.9]} 30. Kxh4 {[%clk 0:01:13.2]} 30...
Kf8 {[%clk 0:00:51.3]} 31. Kg5 {[%clk 0:01:08.4]} 31... Ke7 {[%clk 0:00:51.4]}
32. Rb1 {[%clk 0:01:01.9]} 32... Rxa3 {[%clk 0:00:48.3]} 33. Rb7+ {[%clk
0:01:01.4]} 33... Ke8 {[%clk 0:00:48.9]} 34. f6 {[%clk 0:00:49.5]} 34... gxf6+
{[%clk 0:00:42.2]} 35. Kxf6 {[%clk 0:00:47.7]} 35... Ra6+ {[%clk 0:00:41.8]} 36.
Kf5 {[%clk 0:00:33.9]} 36... Rc6 {[%clk 0:00:41]} 37. Rxa7 {[%clk 0:00:33.9]}
37... c3 {[%clk 0:00:40.9]} 38. Ra1 {[%clk 0:00:33.9]} 38... c2 {[%clk
0:00:39.1]} 39. Rc1 {[%clk 0:00:33.9]} 39... Rc4 {[%clk 0:00:34.7]} 40. h4
{[%clk 0:00:33.1]} 40... Kf8 {[%clk 0:00:30.7]} 41. Kg5 {[%clk 0:00:21.7]} 41...
Rc5 {[%clk 0:00:26.7]} 42. h5 {[%clk 0:00:20.4]} 42... Rc6 {[%clk 0:00:21.7]}
43. f5 {[%clk 0:00:18]} 43... Kg7 {[%clk 0:00:17]} 44. h6+ {[%clk 0:00:16.5]}
44... Kh7 {[%clk 0:00:17.3]} 45. f6 {[%clk 0:00:12.7]} 45... Rc5 {[%clk
0:00:10.8]} 46. Kf5 {[%clk 0:00:12]} 46... Rc7 {[%clk 0:00:09.3]} 47. Ke4 {[%clk
0:00:06]} 47... Kxh6 {[%clk 0:00:08.6]} 48. Kd5 {[%clk 0:00:05.8]} 48... Kg6
{[%clk 0:00:06.7]} 49. Kd6 {[%clk 0:00:04.7]} 49... Rc3 {[%clk 0:00:06.9]} 50.
Kd5 {[%clk 0:00:04.3]} 50... Kf5 {[%clk 0:00:06.7]} 51. Kd4 {[%clk 0:00:04.6]}
51... Rc7 {[%clk 0:00:06.3]} 52. Rf1+ {[%clk 0:00:03.3]} 52... Ke6 {[%clk
0:00:06.4]} 53. Rc1 {[%clk 0:00:03.4]} 53... Rd7+ {[%clk 0:00:06.8]} 54. Ke4
{[%clk 0:00:03.4]} 54... Rd2 {[%clk 0:00:05]} 55. Ke3 {[%clk 0:00:03.3]} 55...
Rh2 {[%clk 0:00:05.1]} 56. Ke4 {[%clk 0:00:03.9]} 56... Rg2 {[%clk 0:00:05.6]}
57. Kf4 {[%clk 0:00:03.8]} 57... Re2 {[%clk 0:00:05]} 58. Kf3 {[%clk 0:00:03.1]}
58... Rd2 {[%clk 0:00:05.2]} 59. Ke4 {[%clk 0:00:03.1]} 59... Rh2 {[%clk
0:00:05.4]} 60. Kf4 {[%clk 0:00:03.3]} 60... Kd5 {[%clk 0:00:05.4]} 61. Kf5
{[%clk 0:00:02.7]} 61... Rf2+ {[%clk 0:00:04.7]} 62. Kg4 {[%clk 0:00:03.1]}
62... Kxe5 {[%clk 0:00:05.6]} 63. Kg3 {[%clk 0:00:03.5]} 63... Rd2 {[%clk
0:00:05.8]} 64. Kf3 {[%clk 0:00:03.6]} 64... Kxf6 {[%clk 0:00:05.7]} 65. Ke3
{[%clk 0:00:04.2]} 65... Rh2 {[%clk 0:00:05.9]} 66. Kd3 {[%clk 0:00:04.6]} 66...
Ke6 {[%clk 0:00:05.8]} 67. Re1+ {[%clk 0:00:04.4]} 67... Kd5 {[%clk 0:00:05.8]}
68. Rf1 {[%clk 0:00:03.9]} 68... Ke6 {[%clk 0:00:05.5]} 69. Re1+ {[%clk
0:00:04]} 69... Kd7 {[%clk 0:00:05.5]} 70. Rf1 {[%clk 0:00:04.1]} 70... Ke7
{[%clk 0:00:05.4]} 71. Re1+ {[%clk 0:00:04.5]} 71... Kf8 {[%clk 0:00:05.7]} 72.
Rf1 {[%clk 0:00:05.1]} 72... Kg7 {[%clk 0:00:04.2]} 73. Rg1+ {[%clk 0:00:05.5]}
73... Kf8 {[%clk 0:00:04.4]} 74. Rf1 {[%clk 0:00:05.8]} 74... Rg2 {[%clk
0:00:04.7]} 75. Kc3 {[%clk 0:00:05]} 75... Re2 {[%clk 0:00:04.1]} 76. Kd3 {[%clk
0:00:04.7]} 76... Rg2 {[%clk 0:00:04.1]} 77. Kc3 {[%clk 0:00:04.6]} 77... Kg7
{[%clk 0:00:04.7]} 78. Kd3 {[%clk 0:00:04.8]} 78... Kg6 {[%clk 0:00:05.1]} 79.
Rc1 {[%clk 0:00:03.8]} 79... f5 {[%clk 0:00:05]} 80. Rxc2 {[%clk 0:00:03.9]}
80... Rxc2 {[%clk 0:00:04.6]} 81. Kxc2 {[%clk 0:00:04.8]} 81... Kg5 {[%clk
0:00:05.3]} 82. Kd3 {[%clk 0:00:04.5]} 82... Kf4 {[%clk 0:00:05.8]} 83. Ke2
{[%clk 0:00:05.1]} 83... Kg3 {[%clk 0:00:06]} 84. Kf1 {[%clk 0:00:02.8]} 84...
Kf3 {[%clk 0:00:06.3]} 0-1

[Event "*** SCC Grand Prix: Titled Tuesday Blitz"]
[Site "Chess.com"]
[Date "2020.06.23"]
[Round "6"]
[White "Evgeny81"]
[Black "Chigorinetz"]
[Result "1-0"]
[WhiteElo "2801"]
[BlackElo "2544"]
[TimeControl "180+1"]
[EndTime "11:08:25 PDT"]
[Termination "Evgeny81 won on time"]

1. e4 {[%clk 0:03:00.9]} 1... c5 {[%clk 0:02:59.4]} 2. d4 {[%clk 0:03:01]} 2...
cxd4 {[%clk 0:02:58.6]} 3. c3 {[%clk 0:03:01.5]} 3... Nc6 {[%clk 0:02:57.4]} 4.
cxd4 {[%clk 0:03:00.8]} 4... d5 {[%clk 0:02:57.2]} 5. e5 {[%clk 0:02:59.8]} 5...
Qb6 {[%clk 0:02:56.1]} 6. Ne2 {[%clk 0:02:53.5]} 6... Bg4 {[%clk 0:02:54.5]} 7.
f3 {[%clk 0:02:53.4]} 7... Bf5 {[%clk 0:02:54.1]} 8. a3 {[%clk 0:02:49]} 8... e6
{[%clk 0:02:53.3]} 9. Nbc3 {[%clk 0:02:48.5]} 9... Rc8 {[%clk 0:02:52.1]} 10. h4
{[%clk 0:02:41.8]} 10... h5 {[%clk 0:02:39.8]} 11. b4 {[%clk 0:02:38.3]} 11...
Nxd4 {[%clk 0:02:06.9]} 12. Nxd4 {[%clk 0:02:25.9]} 12... Rxc3 {[%clk
0:02:05.8]} 13. Bb5+ {[%clk 0:01:58.4]} 13... Kd8 {[%clk 0:02:04.6]} 14. Bg5+
{[%clk 0:01:58]} 14... Be7 {[%clk 0:01:51.2]} 15. Qd2 {[%clk 0:01:54.2]} 15...
Rd3 {[%clk 0:01:32.5]} 16. Bxd3 {[%clk 0:01:50.6]} 16... Qxd4 {[%clk 0:01:31.4]}
17. Rd1 {[%clk 0:01:43.5]} 17... Qxe5+ {[%clk 0:01:30.5]} 18. Be2 {[%clk
0:01:31.7]} 18... Qg3+ {[%clk 0:01:12.9]} 19. Kf1 {[%clk 0:01:31.5]} 19... Bxg5
{[%clk 0:01:12.8]} 20. hxg5 {[%clk 0:01:28.9]} 20... Ne7 {[%clk 0:01:03.7]} 21.
Qe3 {[%clk 0:01:24]} 21... h4 {[%clk 0:00:54]} 22. Qf2 {[%clk 0:01:16.5]} 22...
Qxg5 {[%clk 0:00:52.7]} 23. Qxa7 {[%clk 0:01:16.2]} 23... h3 {[%clk 0:00:51.6]}
24. Qb6+ {[%clk 0:01:11.7]} 24... Kc8 {[%clk 0:00:42]} 25. g4 {[%clk 0:01:07.9]}
25... Nc6 {[%clk 0:00:16]} 26. b5 {[%clk 0:01:00.5]} 26... Ne5 {[%clk
0:00:15.4]} 27. Qc5+ {[%clk 0:00:55.9]} 27... Kd7 {[%clk 0:00:14.6]} 28. Rc1
{[%clk 0:00:52]} 28... Rd8 {[%clk 0:00:09.7]} 29. b6 {[%clk 0:00:43.9]} 29...
Nd3 {[%clk 0:00:07.8]} 30. Qb5+ {[%clk 0:00:21.5]} 30... Ke7 {[%clk 0:00:06.9]}
31. Rc7+ {[%clk 0:00:16.8]} 31... Kf8 {[%clk 0:00:06.7]} 32. Bxd3 {[%clk
0:00:17.4]} 32... Qe3 {[%clk 0:00:05.5]} 33. Be2 {[%clk 0:00:10.8]} 33... Be4
{[%clk 0:00:03.8]} 34. Qc5+ {[%clk 0:00:10.3]} 34... Qxc5 {[%clk 0:00:03.1]} 35.
Rxc5 {[%clk 0:00:11.2]} 35... Bg6 {[%clk 0:00:02.6]} 36. Rxh3 {[%clk 0:00:10.4]}
36... Ke7 {[%clk 0:00:03.5]} 37. Kf2 {[%clk 0:00:10]} 37... Kd6 {[%clk
0:00:04.4]} 38. Rc1 {[%clk 0:00:09.2]} 38... Ra8 {[%clk 0:00:05.3]} 39. Rc3
{[%clk 0:00:09.3]} 39... d4 {[%clk 0:00:04.9]} 40. Rb3 {[%clk 0:00:09.7]} 40...
Bc2 {[%clk 0:00:04.1]} 41. Rb4 {[%clk 0:00:09.6]} 41... d3 {[%clk 0:00:03.1]}
42. Bxd3 {[%clk 0:00:09.9]} 42... Rxa3 {[%clk 0:00:03.1]} 43. Bxc2 {[%clk
0:00:09.3]} 43... Ra2 {[%clk 0:00:04]} 44. Rc4 {[%clk 0:00:09.3]} 44... Kd5
{[%clk 0:00:03.6]} 45. Rc7 {[%clk 0:00:09.4]} 45... Kd6 {[%clk 0:00:03.1]} 46.
Kg3 {[%clk 0:00:09.2]} 46... Rb2 {[%clk 0:00:02.7]} 47. Be4 {[%clk 0:00:07.3]}
47... Rxb6 {[%clk 0:00:02.1]} 48. Rxb7 {[%clk 0:00:07.5]} 48... Ra6 {[%clk
0:00:01.8]} 49. Rxf7 {[%clk 0:00:07.5]} 49... g5 {[%clk 0:00:01.4]} 50. Rg7
{[%clk 0:00:07.4]} 50... Ke5 {[%clk 0:00:01.3]} 51. Rxg5+ {[%clk 0:00:06.4]}
51... Kd4 {[%clk 0:00:02.2]} 52. Rhh5 {[%clk 0:00:06]} 52... Ra1 {[%clk
0:00:03.1]} 53. Rh8 {[%clk 0:00:05.8]} 53... e5 {[%clk 0:00:02.7]} 54. Rgg8
{[%clk 0:00:04.7]} 54... Ke3 {[%clk 0:00:03.6]} 55. Kg2 {[%clk 0:00:04.7]} 55...
Ra2+ {[%clk 0:00:03.4]} 56. Kh3 {[%clk 0:00:05.1]} 56... Ra1 {[%clk 0:00:04.3]}
57. Kh4 {[%clk 0:00:05.4]} 57... Kf2 {[%clk 0:00:03.6]} 58. Kg5 {[%clk
0:00:05.5]} 58... Ra5 {[%clk 0:00:03.3]} 59. Kf5 {[%clk 0:00:05.9]} 59... Rb5
{[%clk 0:00:03.4]} 60. Re8 {[%clk 0:00:06.5]} 60... Ke3 {[%clk 0:00:04]} 61.
Rxe5 {[%clk 0:00:07.1]} 61... Rb7 {[%clk 0:00:03.9]} 62. Re6 {[%clk 0:00:07.5]}
62... Kf2 {[%clk 0:00:04]} 63. Kg6 {[%clk 0:00:07.9]} 63... Rc7 {[%clk
0:00:03.4]} 64. Rf8 {[%clk 0:00:08.3]} 64... Kg3 {[%clk 0:00:03.4]} 65. Rf7
{[%clk 0:00:08.8]} 65... Rc5 {[%clk 0:00:02.9]} 66. Rf5 {[%clk 0:00:08.5]} 66...
Kh4 {[%clk 0:00:03.5]} 67. Rxc5 {[%clk 0:00:08]} 67... Kg3 {[%clk 0:00:04.4]}
68. Rf5 {[%clk 0:00:08.9]} 68... Kh4 {[%clk 0:00:03.8]} 69. Rh5+ {[%clk
0:00:08.6]} 69... Kg3 {[%clk 0:00:03.6]} 70. Kg5 {[%clk 0:00:09.5]} 70... Kf2
{[%clk 0:00:03]} 71. f4 {[%clk 0:00:10]} 71... Ke3 {[%clk 0:00:02.5]} 72. Bf5+
{[%clk 0:00:10.9]} 72... Kf2 {[%clk 0:00:01.8]} 73. Rh3 {[%clk 0:00:10.3]} 73...
Kg1 {[%clk 0:00:02.7]} 74. Ra3 {[%clk 0:00:10.3]} 74... Kg2 {[%clk 0:00:02.9]}
75. Re2+ {[%clk 0:00:09.9]} 75... Kf1 {[%clk 0:00:03.8]} 76. Rae3 {[%clk
0:00:09.4]} 76... Kg1 {[%clk 0:00:03.4]} 77. Bg6 {[%clk 0:00:09.9]} 77... Kf1
{[%clk 0:00:02.8]} 78. Kf6 {[%clk 0:00:10.8]} 78... Kg1 {[%clk 0:00:02.5]} 79.
f5 {[%clk 0:00:11.7]} 79... Kf1 {[%clk 0:00:01.1]} 80. g5 {[%clk 0:00:12.6]} 1-0